Cogmind - Beta 12 @@@ ROGUE MODE // 2023.06.15 @ 18:10:58 Player: skigear Result: Self-destructed Performance ------------- Evolutions (1) 500 Regions Visited (5) 1000 Robots Destroyed (69) 345 Value Destroyed (1801) 1801 Prototype IDs (6) 120 Alien Tech Used (0) 0 Bonus (573) 573 TOTAL SCORE: 4339 Bonus ------- High Alert Combat Kills 16 Met Imprinter 300 Was Imprinted 300 Friendly Fire -43 Cogmind --------- Core Integrity 64/400 Matter 252/300 Energy 100/100 System Corruption 2% Temperature Warm (157) Movement Core (1350) Ox26 Location -7/Zion Parts ------- > --- POWER (1) -------- (None) > --- PROPULSION (3) --- Armored Treads > --- UTILITY (3) ------ Huge Storage Unit Signal Interpreter Hacking Suite > --- WEAPON (2) ------- (None) > --- INVENTORY (25) --- Improved Ion Engine Improved Ion Engine Improved Treads Armored Treads Armored Treads Armored Treads Armored Treads Large Storage Unit High-capacity Battery (250) High-capacity Matter Pod (200) Medium Armor Plating Medium Armor Plating Medium Armor Plating Improved Light Armor Plating High-powered Tractor Beam High-powered Tractor Beam Heavy Particle Gun Heavy Particle Gun Advanced Beam Cannon Advanced Beam Cannon Advanced Beam Cannon Grenade Launcher Datajack Katana CR-A16's Pointy Stick Peak State ------------ > --- POWER ------------ Heavy Ion Engine > --- PROPULSION ------- Armored Treads Armored Treads Armored Treads > --- UTILITY ---------- Huge Storage Unit Signal Interpreter Hacking Suite > --- WEAPON ----------- Heavy Particle Gun Advanced Beam Cannon > --- INVENTORY -------- Improved Ion Engine Heavy Ion Engine Light Treads Light Treads Armored Treads Wheel Wheel Large Storage Unit High-capacity Battery High-capacity Matter Pod Medium Armor Plating Medium Armor Plating Medium Armor Plating Improved Light Armor Plating Heavy Particle Gun Heavy Particle Gun Advanced Beam Cannon Advanced Beam Cannon Improved Light Cannon Improved Light Cannon Grenade Launcher Rocket Launcher Datajack Mining Claw Katana [Rating: 29] Favorites ----------- Power Heavy Ion Engine Engine Heavy Ion Engine Power Core Light Nuclear Core Propulsion Wheel Treads Armored Treads Wheel Wheel Utility Huge Storage Unit Device Shield Generator Storage Huge Storage Unit Processor Signal Interpreter Hackware Hacking Suite Protection Medium Armor Plating Weapon Advanced Beam Cannon Energy Gun Heavy Particle Gun Energy Cannon Advanced Beam Cannon Ballistic Gun Autogun Ballistic Cannon Improved Light Cannon Launcher Rocket Launcher Slashing Weapon Katana Piercing Weapon CR-A16's Pointy Stick Special Melee Weapon Datajack Build | -11 -10 -10 -9 -9 -7 ------- Run | Jun Mat Min Mat Min Zio Slots Evolved 2 | . . . 2 . . Power . | . . . . . . Propulsion 1 | . . . 1 . . Utility 1 | . . . 1 . . Weapon . | . . . . . . Parts Attached 62 | 6 14 1 33 1 7 Power 5 | 1 2 . 2 . . Engine 4 | 1 1 . 2 . . Core 1 | . 1 . . . . Reactor . | . . . . . . Propulsion 18 | 2 4 . 11 . 1 Treads 9 | 1 2 . 5 . 1 Leg . | . . . . . . Wheel 9 | 1 2 . 6 . . Hover . | . . . . . . Flight . | . . . . . . Utility 9 | 1 5 . 3 . . Device 1 | . . . 1 . . Storage 3 | 1 2 . . . . Processor 1 | . 1 . . . . Hackware 1 | . . . 1 . . Protection 3 | . 2 . 1 . . Artifact . | . . . . . . Weapon 30 | 2 3 1 17 1 6 Energy Gun 5 | 1 . . 3 . 1 Energy Cannon 11 | . 1 . 8 1 1 Ballistic Gun 4 | 1 2 . 1 . . Ballistic Cannon 1 | . . . 1 . . Launcher 2 | . . 1 . . 1 Special Weapon . | . . . . . . Impact Weapon . | . . . . . . Slashing Weapon 4 | . . . 3 . 1 Piercing Weapon 2 | . . . . . 2 Special Melee Weapon 1 | . . . 1 . . Unidentified Prototypes 6 | . . . 6 . . Parts Lost 7 | . 1 . 1 . 5 Power 2 | . . . 1 . 1 Propulsion 3 | . 1 . . . 2 Utility . | . . . . . . Weapon 2 | . . . . . 2 Highest Loss Streak 5 | . 1 . 1 . 5 To Critical Strikes . | . . . . . . Average Slot Usage (%) 99 | . 97 100 99 100 99 Engine 10 | . 9 14 10 11 11 Treads 11 | . 13 14 11 11 11 Wheel 19 | . 13 14 21 22 21 Storage 11 | . 14 14 11 11 11 Processor 9 | . 1 14 11 11 11 Hackware 7 | . . . 9 11 11 Protection 2 | . 10 . . . . Energy Gun 5 | . 1 . 6 11 6 Energy Cannon 10 | . 4 14 12 11 10 Ballistic Gun 5 | . 21 13 . . . Piercing Weapon 1 | . . . . . 4 Naked Turns . | . . . . . . Heaviest Build 98 | 14 98 92 98 95 95 Greatest Support 22 | 20 20 10 22 22 22 Greatest Overweight (x) 9 | 1 9 9 4 4 4 Average Overweight (x) 3 | . 2 9 4 4 4 Largest Inventory Capacity 25 | 8 25 25 25 25 25 Average Capacity 22 | 7 15 25 25 25 25 Most Carried 25 | 8 21 22 25 25 25 Average Carried 22 | 4 14 21 24 25 25 Final Capacity 25 | 8 25 25 25 25 25 Final Carried 25 | 4 21 22 25 25 25 Class Distribution -------------------- 99% | Mutant Dominant Class ---------------- Mutant | -10/Materials Mutant | -10/Mines Mutant | -9/Materials Mutant | -9/Mines Mutant | -7/Zion Resources | -11 -10 -10 -9 -9 -7 ----------- Run | Jun Mat Min Mat Min Zio Matter Collected 1542 | 228 717 83 468 16 30 Remotely . | . . . . . . Salvage Created 2507 | . 607 83 1627 190 . Parts 157 | . 31 4 112 10 . Haulers Intercepted 7 | . 2 . 5 . . Recyclers Shooed 1 | . . . 1 . . Parts Field Recycled . | . . . . . . Retrieved Matter . | . . . . . . Parts Self-Destructed . | . . . . . . Prevented . | . . . . . . Kills | -11 -10 -10 -9 -9 -7 ------- Run | Jun Mat Min Mat Min Zio Combat Hostiles Destroyed 50 | . 10 2 31 7 . Guns 23 | . 10 2 8 3 . Cannons 25 | . . . 22 3 . Classes Destroyed 10 | . 6 . 4 . . Builder 1 | . . . 1 . . Tunneler 1 | . 1 . . . . Hauler 7 | . 2 . 5 . . Recycler 1 | . 1 . . . . Operator 1 | . . . 1 . . Watcher 8 | . 3 . 5 . . Swarmer 12 | . 3 . 6 3 . Grunt 24 | . 7 2 13 2 . Duelist 5 | . . . 3 2 . Sentry 9 | . . . 9 . . Best Kill Streak 6 | . 5 2 6 3 . Combat Bots Only 6 | . 4 2 6 3 . Max Kills in Single Turn 2 | . 2 1 2 1 . Gunslinging . | . . . . . . Exploded . | . . . . . . Melee . | . . . . . . Uniques/NPCs Destroyed . | . . . . . . Combat | -11 -10 -10 -9 -9 -7 -------- Run | Jun Mat Min Mat Min Zio Damage Taken 2644 | . 602 121 1046 385 490 Core 455 | . 89 30 205 34 97 Absorbed by Shields 122 | . . . 122 . . Regen/Repaired (Parts) 441 | . 73 . 368 . . Core Remaining (%) 76 | 100 . 52 . . . Volleys Fired 158 | . 51 6 79 16 6 Largest 2 | . 2 2 2 2 2 Hottest 136 | . 83 83 136 123 88 Shots Fired 313 | . 101 12 159 32 9 Gun 160 | . 100 6 32 16 6 Cannon 149 | . 1 6 126 16 . Launcher 4 | . . . 1 . 3 Special . | . . . . . . Kinetic 111 | . 84 6 21 . . Thermal 198 | . 17 6 137 32 6 Explosive 4 | . . . 1 . 3 Electromagnetic . | . . . . . . Robot Hit Streak 12 | . 9 11 12 9 . Robot Miss Streak 5 | . 5 1 3 2 . Penetration Max . | . . . . . . Secondary Targets . | . . . . . . Shots Hit Robots 190 | . 67 11 90 22 . Core Hits 87 | . 24 3 48 8 4 Critical Kills 3 | . 1 . 1 1 . Critical Parts Destroyed . | . . . . . . Critical Strikes 5 | . 1 . 3 1 . Burn 2 | . . . 2 . . Meltdown 2 | . . . 1 1 . Destroy 1 | . 1 . . . . Melee Attacks 68 | . . . 12 . 56 Impact . | . . . . . . Slashing 15 | . . . 10 . 5 Piercing 51 | . . . . . 51 Sneak Attacks 2 | . . . 2 . . Combat Hostiles . | . . . . . . Follow-up Attacks . | . . . . . . Damage Inflicted 3589 | . 1000 180 1881 445 83 Guns 1768 | . 982 93 442 251 . Cannons 1685 | . 18 87 1386 194 . Explosions 121 | . . . 38 . 83 Melee . | . . . . . . Ramming 15 | . . . 15 . . Kinetic 1169 | . 884 93 192 . . Thermal 2284 | . 116 87 1636 445 . Explosive 121 | . . . 38 . 83 Electromagnetic . | . . . . . . Impact . | . . . . . . Slashing . | . . . . . . Piercing . | . . . . . . Highest Corruption 2 | . . . 1 1 2 Average Corruption 1 | . . . 1 1 1 Corruption Purged . | . . . . . . Corruption Blocked . | . . . . . . Effects 14 | . . . 11 2 1 Message Errors 3 | . . . 2 . 1 Matter Fused 5 | . . . 4 1 . Heat Flow Errors 1 | . . . 1 . . Data Loss (minor) 4 | . . . 3 1 . Misfires 1 | . . . 1 . . Overload Shots . | . . . . . . Overflow Damage 2 | . . . . 2 . Projectiles 2 | . . . . 2 . Explosions . | . . . . . . Melee . | . . . . . . Knockbacks 2 | . . . 2 . . Impact 1 | . . . 1 . . Kinetic 1 | . . . 1 . . Secondary . | . . . . . . Self-Inflicted Damage 67 | . . . 46 . 21 Shots 2 | . . . 1 . 1 Rammed 1 | . . . 1 . . Targets Rammed 1 | . . . 1 . . Kicked . | . . . . . . Crushed . | . . . . . . Highest Temperature 355 | . 110 229 348 355 137 Average Temperature 103 | . 29 116 117 165 52 Received Heat Transfer 878 | . 288 57 343 90 100 Effects 8 | . . . 5 3 . Energy Bleed 3 | . . . 2 1 . Interference 2 | . . . 2 . . Short Circuit 1 | . . . . 1 . Damage (minor) 2 | . . . 1 1 . Siege Activations . | . . . . . . Robots Corrupted . | . . . . . . Combat Hostiles . | . . . . . . Parts Fried . | . . . . . . Impact Corruptions . | . . . . . . Robots Melted 2 | . . . 1 1 . Combat Hostiles 2 | . . . 1 1 . Parts Melted 7 | . . . 7 . . Heat Transferred 4514 | . 333 185 3182 814 . Parts Sabotaged . | . . . . . . Parts Stolen . | . . . . . . Parts Stripped . | . . . . . . Power Chain Reactions . | . . . . . . Missiles Intercepted . | . . . . . . Alert | -11 -10 -10 -9 -9 -7 ------- Run | Jun Mat Min Mat Min Zio Peak Influence 428 | . 181 57 428 285 . Initial 115 | . . 7 . 115 . Average 185 | . 91 44 262 206 . Maximum Alert Level 2 | . . . 2 1 . Low Security (%) 53 | 100 100 100 20 44 . Level 1 45 | . . . 77 55 . Level 2 . | . . . 1 . . Level 3 . | . . . . . . Level 4 . | . . . . . . Level 5 . | . . . . . . High Security . | . . . . . . Max Security . | . . . . . . Squads Dispatched 4 | . 2 . 2 . . Investigation 1 | . . . 1 . . Extermination . | . . . . . . Reinforcement 3 | . 2 . 1 . . Assault . | . . . . . . Garrison . | . . . . . . Intercept . | . . . . . . Searches Triggered . | . . . . . . Construction Impeded . | . . . . . . Haulers Reinforced . | . . . . . . Active Scanning Responses . | . . . . . . Cargo Convoy Interrupts . | . . . . . . Stealth | -11 -10 -10 -9 -9 -7 --------- Run | Jun Mat Min Mat Min Zio Distress Signals 3 | . . . 3 . . Communications Jammed . | . . . . . . Distress Signals . | . . . . . . Times Spotted 99 | . 22 16 45 11 5 Peak Tracking Total 11 | . 4 11 5 3 5 Tactical Retreats 4 | . 3 . 1 . . Traps | -11 -10 -10 -9 -9 -7 ------- Run | Jun Mat Min Mat Min Zio Traps Triggered 3 | . 1 . 2 . . Indirectly . | . . . . . . Trap Hack Attempts . | . . . . . . Triggered . | . . . . . . Disarmed . | . . . . . . Reprogrammed . | . . . . . . Reused . | . . . . . . Traps Extracted . | . . . . . . Installed . | . . . . . . Triggered . | . . . . . . Machines | -11 -10 -10 -9 -9 -7 ---------- Run | Jun Mat Min Mat Min Zio Machines Disabled 2 | . . . 1 . 1 Max in Single Turn 1 | . . . 1 . 1 Machines Repaired . | . . . . . . Machines Sabotaged . | . . . . . . Overloaded Fab Kills . | . . . . . . Hacking | -11 -10 -10 -9 -9 -7 --------- Run | Jun Mat Min Mat Min Zio Machines Accessed 26 | . 9 . 16 . 1 Terminals 17 | . 6 . 11 . . Fabricators . | . . . . . . Repair Stations 2 | . 1 . 1 . . Recycling Units 4 | . 2 . 2 . . Scanalyzers 2 | . . . 2 . . Garrison Access . | . . . . . . Total Hacks 89 | . 23 . 61 . 5 Successful 61 | . 13 . 43 . 5 Failed 28 | . 10 . 18 . . Catastrophic 4 | . 2 . 2 . . Database Lockouts . | . . . . . . Manual 27 | . 12 . 14 . 1 Terminals 46 | . 16 . 30 . . Fabricators . | . . . . . . Repair Stations 10 | . 2 . 8 . . Recycling Units 12 | . 5 . 7 . . Scanalyzers 16 | . . . 16 . . Garrison Access . | . . . . . . Terminal Hacks 29 | . 7 . 17 . 5 Record 1 | . . . 1 . . Part Schematic 9 | . 2 . 2 . 5 Robot Analysis 4 | . . . 4 . . Branch Access Points 2 | . 1 . 1 . . Terminal Index 1 | . . . 1 . . Alert Level 1 | . . . 1 . . Unreport Threat 1 | . . . 1 . . Locate Traps 5 | . 2 . 3 . . Transport Status 1 | . 1 . . . . Hauler Manifests 3 | . 1 . 2 . . Zone Layout 1 | . . . 1 . . Fabricator Hacks . | . . . . . . Repair Station Hacks 10 | . 2 . 8 . . Scan Component 5 | . 1 . 4 . . Repair 5 | . 1 . 4 . . Recycling Unit Hacks 3 | . 2 . 1 . . Retrieve Components 3 | . 2 . 1 . . Scanalyzer 15 | . . . 15 . . Insert Component 7 | . . . 7 . . Analyze 8 | . . . 8 . . Garrison Access Hacks . | . . . . . . Unauthorized Hacks 4 | . 2 . 2 . . Terminals . | . . . . . . Fabricators . | . . . . . . Repair Stations . | . . . . . . Recycling Units 4 | . 2 . 2 . . Reject 4 | . 2 . 2 . . Scanalyzers . | . . . . . . Garrison Access . | . . . . . . Data Cores Recovered 1 | . . . 1 . . Used . | . . . . . . Hacking Detections 20 | . 7 . 13 . . Full Trace Events . | . . . . . . Feedback Events . | . . . . . . Feedback Blocked . | . . . . . . Robot Schematics Acquired 4 | . . . . . 4 Robots Built . | . . . . . . Authchips . | . . . . . . Time . | . . . . . . Total Robot Build Rating . | . . . . . . Part Schematics Acquired 29 | . 2 . 8 . 19 Parts Built . | . . . . . . Authchips . | . . . . . . Time . | . . . . . . Total Part Build Rating . | . . . . . . Parts Repaired 5 | . 1 . 4 . . Time 154 | . 26 . 128 . . Parts Recycled . | . . . . . . Recycled Matter . | . . . . . . Retrieved Matter . | . . . . . . Retrieved Components 16 | . 7 . 9 . . Parts Scanalyzed 7 | . . . 7 . . Part Schematics Acquired 6 | . . . 6 . . Parts Damaged . | . . . . . . Bothacking | -11 -10 -10 -9 -9 -7 ------------ Run | Jun Mat Min Mat Min Zio Used RIF Installer . | . . . . . . Robots Hacked 1 | . . . 1 . . Non-combat 1 | . . . 1 . . Combat . | . . . . . . Robot Hacks Applied 2 | . . . 2 . . find_recycling 2 | . . . 2 . . Relay Couplers Released . | . . . . . . Fabnet Peak Effective % . | . . . . . . Robots Rewired . | . . . . . . Allies Hacked . | . . . . . . Hacks Repelled . | . . . . . . Allies | -11 -10 -10 -9 -9 -7 -------- Run | Jun Mat Min Mat Min Zio Total Allies 4 | . . . . . 4 Largest Group 4 | . . . . . 4 Highest-Rated Group 154 | . . . . . 154 Highest-Rated Ally 39 | . . . . . 39 Total Orders . | . . . . . . Ally Attacks . | . . . . . . Total Damage . | . . . . . . Kills . | . . . . . . Allies Corrupted . | . . . . . . Allies Melted . | . . . . . . Intel | -11 -10 -10 -9 -9 -7 ------- Run | Jun Mat Min Mat Min Zio Robot Analysis Total 4 | . . . 4 . . Derelict Logs Recovered 2 | . . 1 . . 1 Drone Launches . | . . . . . . Drone Recoveries . | . . . . . . Exploration | -11 -10 -10 -9 -9 -7 ------------- Run | Jun Mat Min Mat Min Zio Turns Passed 8235 | 66 1720 501 3166 211 2571 Spaces Moved 4748 | 50 991 216 1754 112 1625 Core 30 | 30 . . . . . Treads 116 | 20 96 . . . . Legs . | . . . . . . Wheels 4602 | . 895 216 1754 112 1625 Hover . | . . . . . . Flight . | . . . . . . Fastest Speed 50 | 50 100 215 140 145 145 Average Speed 146 | 104 146 215 141 145 145 Slowest Speed 240 | 160 240 215 145 145 145 Overloaded Moves . | . . . . . . Propulsion Burnouts . | . . . . . . Robots Hopped . | . . . . . . Cave-ins Triggered . | . . . . . . Exploration Rate (%) 58 | 4 100 39 95 28 84 Regions Visited 5 Branch Regions 3 Pre-discovered Areas . | . . . . . . Known Exits Taken 4 | . 1 1 1 1 . Unknown Exits Taken 1 | 1 . . . . . Scrap Searched 1 | . . . . . 1 Spaces Dug 7 | . . . 5 . 2 Terrain Destroyed 21 | . . . 14 . 7 Melee 7 | . . . 5 . 2 Projectile 2 | . . . 2 . . AOE 12 | . . . 7 . 5 Terrain Rammed . | . . . . . . Walls Destroyed . | . . . . . . Machines Disabled . | . . . . . . Actions | -11 -10 -10 -9 -9 -7 --------- Run | Jun Mat Min Mat Min Zio Total 5596 | 63 1174 242 2270 128 1719 Wait 440 | . 78 19 321 . 22 Move 4743 | 49 990 215 1753 111 1625 Hop . | . . . . . . Pick Up 68 | 8 27 1 31 . 1 Fast Attach 21 | 2 3 . 16 . . Attach 14 | 4 5 . 5 . . Detach 3 | . 1 . 2 . . Swap 27 | . 6 1 12 1 7 Drop 53 | . 13 . 38 . 2 Fire 158 | . 51 6 79 16 6 Melee 68 | . . . 12 . 56 Ram 1 | . . . 1 . . Kick . | . . . . . . Crush . | . . . . . . Escape Stasis . | . . . . . . Rewire . | . . . . . . Trap . | . . . . . . Miscellaneous . | . . . . . . Route ------- -11/Junkyard -10/Materials (discovered 4 exits: *Mat x3 / *Min) -10/Mines (discovered 2 exits: *Mat x2) -9/Materials (discovered 5 exits: *Mat x3 / *Min x2) -9/Mines -7/Zion History --------- Turn | Location | Event 9 | -11/Junkyard | Discovered new exit (range 15) 67 | -11/Junkyard | Entered Materials 162 | -10/Materials | Discovered new exit (range 11) 281 | -10/Materials | Identified exit to Mines 283 | -10/Materials | Discovered new exit (range 8) 339 | -10/Materials | Build established: Mutant 639 | -10/Materials | Repaired Lgt. Treads 1037 | -10/Materials | Discovered new exit (range 5) 1435 | -10/Materials | Discovered new exit (range 6) 1642 | -10/Materials | Identified exit to Materials 1787 | -10/Materials | Entered Mines 1921 | -10/Mines | Received a Rocket Launcher from a helpful Derelict 2009 | -10/Mines | Discovered exit to Materials (range 12) 2011 | -10/Mines | Learned Materials security intel 2262 | -10/Mines | Assembled infested the area 2271 | -10/Mines | Discovered exit to Materials (range 9) 2288 | -10/Mines | Entered Materials 2288 | -9/Materials | Evolved 2 slots: Propulsion x1, Utility x1 2467 | -9/Materials | Discovered new exit (range 15) 2886 | -9/Materials | Discovered new exit (range 8) 2897 | -9/Materials | Identified exit to Mines 3249 | -9/Materials | Discovered new exit (range 16) 3454 | -9/Materials | Discovered new exit (range 16) 3474 | -9/Materials | Identified exit to Materials 3938 | -9/Materials | Repaired Wheel 3977 | -9/Materials | Repaired Arm. Treads 4017 | -9/Materials | Repaired Arm. Treads 4044 | -9/Materials | Repaired Wheel 4658 | -9/Materials | Core integrity fell below 50% 4922 | -9/Materials | Discovered exit to Materials (range 11) 5454 | -9/Materials | Entered Mines 5554 | -9/Mines | A Derelict revealed a hidden shortcut to a safe place 5564 | -9/Mines | Identified exit to Zion 5665 | -9/Mines | Entered Zion 5713 | -7/Zion | System corruption cleaned by Quarantine Array 5905 | -7/Zion | Found CR-A16's Pointy Stick 5943 | -7/Zion | Learned Factory emergency access door positions 7019 | -7/Zion | Imprinted 7022 | -7/Zion | Declared Zion's savior 8228 | -7/Zion | Attacked by Zionites 8233 | -7/Zion | Core integrity fell below 20% 8236 | -7/Zion | Self-destructed Last Messages --------------- to eventually attract attention. Security and surveillance bots tend to care about this sort of thing more than others, but most 0b10 combat bots being scanned will report the event to varying degrees. Looks like we really should stick to regular sensors. 07880_ PI-RHB(z) fiddles with the Twisted Machinery. 07889_ Acquired 30 matter. 07983_ DU-NX9(z) uncovers a bit of Twisted Machinery. 08066_ The unstable cave ceiling collapses. 08066_ RB-MC8(M) crushed by falling debris. 08165_ PUBLIC SERVICE ANNOUNCEMENT: Quarantine Array scanned 1 system, cleaned 0. 08197_ Connecting with Deep Containment System... 08228_ PUBLIC SERVICE ANNOUNCEMENT: Zion is under attack! Defend our home! 08228_ Arm. Wheel destroyed. 08228_ Wheel destroyed. 08233_ Deep Containment System disabled. 08234_ Hvy. Particle Gun destroyed. 08235_ Hvy. Ion Engine destroyed. 08235_ Rocket Launcher destroyed. Map ----- +----------------------------------------------------+ | ?????????????????????????????????????????????????? | | ?????????????????????????????????????????????????? | | ?????????????????????????????????????????????????? | | ?????????????????????????????????????????????????? | | ?????????????????????????????????????????????????? | | ?????????????????????????????????????????????????? | | ?????????????????????????????????????????????????? | | ?????????????????????????????????????????????????? | | ?????????????????????????????????????????????????? | | ?????????????????????????????????????????????????? | | ?????????????????????????????????????????????????? | | ?????????????????????????????????????????????##### | | ????????????????????????????????????????????##"""" | | ????????????????????????????????????????????#"""" | | ????????????????????????????????????##??#####""" | | ???????????????????????????###?????##"###""###"" | | ?????????????????????????###"#?????#"#""""""""" | | ???????????????????????#?#"""####??#""" """"" " | | ??????????????????????##"#" """"#??#""" """ " | | ?????????????????#####""#"" """#???#" "" " | | ?????????????????# """"#"" ""##??##" "" " | | ?????????????????### """#""" ""####"" """" | | ???????????????????" ""##"" """"###" """ | | ???????????????????# ""#" """#"#" """ | | ??????????????????## M """" """""" """" | | ??????????????????" @ M """"" "#""" | | ??????????????????" M MM """ """""" | | ????????????####### """ """" """""##" | | ????????????# # #"" """" """"""#"" | | ????????????# "# ## "" # ##" """" """"""""" | | ???????###### ############"" "" | | ???????#""" ##?????????#""" "" | | ???????#######??????????#"" """" | | ????????????????????????#"" """"" "## | | ????????????????????????#""" """ "" """" | | ????????????????????????###"" """" """"" | | ??????????????????????????#"""""#"" """"# | | ??????????????????????????###""###" ""#"# | | ????????????????????????????####?#"""" #""## | | ?????????????????????????????????##"""" """#? | | ??????????????????????????????????##""" """#? | | ???????????????????????????????????#"" " ""##? | | ??????????????????#######??????????##" " ""##? | | ????????????#######""#""#???###????#""" """#? | | ????????????""#""##"##"#"####"#######""" """#? | | ??###########""""""""""##""""""##""#""#" #""#? | | ?"""""""""" ##"" """""""""""""""""" """#? | | #"""""""""" #""" """#? | | ?"" #""" """#? | | ??""""" ##"" """"""""""""" ""##? | +----------------------------------------------------+ Best States ------------- Heat Dissipation 28 Energy Generation 14 Energy Capacity 280 Matter Stores 300 Matter Capacity 300 Sight Range 16 Terrain Scan Density 10 Armor Coverage 225 Evasion (%) 50 Recoil Reduction 3 Offensive Hacking 10 Item Schematics ----------------- Huge Storage Unit | -10/Materials | Hacked Cargo Storage Unit | -10/Materials | Hacked Arm. Wheel | -9/Materials | Hacked Hpw. Tractor Beam | -9/Materials | Hacked Arm. Treads | -9/Materials | Scanalyzed Med. Armor Plating | -9/Materials | Scanalyzed Rocket Launcher | -9/Materials | Scanalyzed Lrg. Storage Unit | -9/Materials | Scanalyzed Hcp. Matter Pod | -9/Materials | Scanalyzed Hcp. Battery | -9/Materials | Scanalyzed Beamcaster | -7/Zion | Free Battle Rifle | -7/Zion | Free Flamer | -7/Zion | Free Plasma Flamer | -7/Zion | Free Ripper | -7/Zion | Free Phase Cannon | -7/Zion | Archive Spear | -7/Zion | Archive Shock Absorption System | -7/Zion | Archive 0b10 Decoder Chip [Scout] | -7/Zion | Archive Mak. Trap Scanner | -7/Zion | Archive Mak. Armor Plating | -7/Zion | Archive Imp. Heavy Armor Plating | -7/Zion | Archive Imp. Field Recycling Unit | -7/Zion | Archive Imp. Hardlight Generator | -7/Zion | Archive Imp. Titanium Leg | -7/Zion | Archive Spk. Medium Treads | -7/Zion | Archive Focal Shield | -7/Zion | Archive Matter Filter | -7/Zion | Archive Imp. Thermal Shield | -7/Zion | Archive Robot Schematics ------------------ L-41 Fighter | -7/Zion | Archive R-06 Scavenger | -7/Zion | Archive K-01 Serf | -7/Zion | Archive D-83 Annihilator | -7/Zion | Archive Fabricated ------------ Nothing Alien Tech Used ----------------- None Achievements -------------- I Survived The Infestation Challenges ------------ None Game ------ Seed AblativeTargetClaws Manual? 0 Play Time 01:05:13 Cumulative 30.6 hours Start 2023.06.14 @ 23:00:42 End 2023.06.15 @ 18:10:58 Sessions 3 Manual Loads 0 Difficulty Rogue Special Mode None Game No. 19 Rogue 19 Adventurer 0 Explorer 0 Win Type - Total 0 Types 0/0/0/0/0/0/0/0/0 Lore% 30 Gallery% 32 Achievement% 32 Wizard Run 0 Options --------- ASCII 0 Keyboard 0 Movement Mouse Keybinds 0 Fullscreen 1 Font 24/Smallcaps Map View 76x50 Tactical HUD 1 Map Filters NONE Filters NONE Steam 1 RUN: 1a16b5ef-a04a-492b-b0ec-de31f927c965